lending/lending_fUSD_20260306
["ID","MTS","AMOUNT","RATE_DAILY","PERIOD"]
[407752097,1772755253326,48980.98126977,0.000162,5]
[407752098,1772755293953,1384.946,0.00016226,2]
[407752099,1772755294050,169.697,0.00016226,2]
[407752100,1772755504683,1854.98,0.00016186,2]
[407752101,1772755555159,-823.50944647,0.00016426,2]
[407752102,1772755628138,-1955.04583592,0.00016426,2]
[407752103,1772755637044,1785.660935,0.00016261,2]
[407752105,1772755720705,3240.0,0.00016087,2]
[407752106,1772755767123,-196.30944379,0.00016388,2]
[407752107,1772755767150,-1200.0,0.00016488,2]
[407752108,1772755767172,-550.0,0.00016488,2]
[407752109,1772755767193,-300.0,0.00016488,2]
[407752110,1772755767213,-1871.98981135,0.00016489,2]
[407752111,1772755767251,-2593.70114486,0.00016489,2]
[407752117,1772755831823,-1762.27514874,0.00016426,2]
[407752119,1772755831833,-4.64566968,0.00016426,2]
[407752120,1772755831845,-283.35433032,0.00016426,2]
[407752121,1772755831855,-300.0,0.00016488,2]
[407752122,1772755831865,-886.72237582,0.00016488,2]
[407752123,1772755831990,-313.27762418,0.00016488,2]
[407752124,1772755832000,-687.83876529,0.00016489,2]
[407752125,1772755832012,-704.57304315,0.00016489,2]
[407752126,1772755832024,-111486.11391297,0.00016489,2]
[407752127,1772755832033,-400.0,0.0001649,5]
[407752128,1772755832043,-7100.85414763,0.00016526,2]
[407752129,1772755832053,-173.98765808,0.00016536,2]
[407752130,1772755832063,-500.0,0.00016548,2]
[407752131,1772755832073,-200.0,0.00016548,2]
[407752132,1772755832087,-500.0,0.00016548,2]
[407752133,1772755832096,-500.0,0.00016548,2]
[407752134,1772755832106,-500.0,0.00016548,2]
[407752136,1772755832116,-500.0,0.00016548,2]
[407752137,1772755832126,-151.0,0.00016548,2]
[407752138,1772755832135,-500.0,0.00016548,2]
[407752139,1772755832146,-151.0,0.00016548,2]
[407752140,1772755832156,-500.0,0.00016548,2]
[407752142,1772755832165,-151.0,0.00016548,2]
[407752143,1772755832175,-500.0,0.00016548,2]
[407752144,1772755832184,-500.0,0.00016548,2]
[407752145,1772755832194,-151.0,0.00016548,2]
[407752146,1772755832203,-500.0,0.00016548,2]
[407752147,1772755832212,-151.0,0.00016548,2]
[407752148,1772755832222,-500.0,0.00016548,2]
[407752150,1772755832231,-151.0,0.00016548,2]
[407752152,1772755832240,-500.0,0.00016548,2]
[407752153,1772755832254,-151.0,0.00016548,2]
[407752154,1772755832273,-151.0,0.00016548,2]
[407752155,1772755832283,-151.0,0.00016548,2]
[407752156,1772755832294,-151.0,0.00016548,2]
[407752158,1772755832303,-151.0,0.00016548,2]
[407752160,1772755832315,-151.0,0.00016548,2]
[407752162,1772755832324,-151.0,0.00016548,2]
[407752164,1772755832334,-151.0,0.00016548,2]
[407752165,1772755832343,-151.0,0.00016548,2]
[407752166,1772755832352,-151.0,0.00016548,2]
[407752167,1772755832362,-151.0,0.00016548,2]
[407752168,1772755832371,-151.0,0.00016548,2]
[407752169,1772755832381,-151.0,0.00016548,2]
[407752170,1772755832391,-151.0,0.00016548,2]
[407752171,1772755832400,-151.0,0.00016548,2]
[407752172,1772755832409,-151.0,0.00016548,2]
[407752173,1772755832419,-151.0,0.00016548,2]
[407752174,1772755832429,-151.0,0.00016548,2]
[407752175,1772755832439,-151.0,0.00016548,2]
[407752176,1772755832448,-151.0,0.00016548,2]
[407752177,1772755832458,-151.0,0.00016548,2]
[407752178,1772755832467,-151.0,0.00016548,2]
[407752179,1772755832476,-151.0,0.00016548,2]
[407752180,1772755832486,-151.0,0.00016548,2]
[407752181,1772755832495,-151.0,0.00016548,2]
[407752182,1772755832504,-431.35722449,0.00016557,2]
[407752183,1772755832514,-170.0015909,0.00016557,2]
[407752184,1772755832523,-210.72709209,0.00016557,2]
[407752185,1772755832532,-500.0,0.00016557,2]
[407752186,1772755832542,-500.0,0.00016557,2]
[407752187,1772755832551,-500.0,0.00016557,2]
[407752188,1772755832560,-500.0,0.00016557,2]
[407752189,1772755832570,-500.0,0.00016557,2]
[407752190,1772755832579,-287.42802301,0.00016557,2]
[407752191,1772755832589,-500.0,0.00016557,2]
[407752192,1772755832598,-500.0,0.00016557,2]
[407752193,1772755832608,-500.0,0.00016557,2]
[407752194,1772755832618,-185.74394931,0.00016557,2]
[407752195,1772755832627,-499.99999999,0.00016557,2]
[407752196,1772755832636,-500.0,0.00016557,2]
[407752197,1772755832647,-500.0,0.00016557,2]
[407752198,1772755832657,-500.0,0.00016557,2]
[407752199,1772755832668,-500.0,0.00016557,2]
[407752200,1772755832678,-500.0,0.00016557,2]
[407752201,1772755832689,-630.79476867,0.00016557,2]
[407752202,1772755832698,-1000.0,0.00016636,2]
[407752203,1772755832707,-32906.2197,0.00016636,2]
[407752204,1772755832716,-500.0,0.0001669,2]
[407752205,1772755832726,-500.0,0.0001669,2]
[407752206,1772755832735,-500.0,0.0001669,2]
[407752207,1772755832744,-500.0,0.0001669,2]
[407752208,1772755832755,-501.44396091,0.0001669,2]
[407752209,1772755832764,-2000.0,0.00016709,2]
[407752210,1772755832773,-166.23,0.00016712,2]
[407752211,1772755832783,-150.3,0.0001679,2]
[407752212,1772755832793,-150.0,0.0001683,30]
[407752213,1772755832802,-7100.85414762,0.00016901,2]
[407752214,1772755832811,-227.0,0.00016952,2]
[407752215,1772755832820,-293.0,0.00016954,2]
[407752216,1772755832830,-153.0,0.00016954,2]
[407752217,1772755832840,-3830.58203044,0.0001696,2]
[407752218,1772755832849,-70225.54367334,0.00017,2]
[407752219,1772755832858,-152.07545423,0.00017,2]
[407752220,1772755832867,-23101.38,0.00017041,2]
[407752221,1772755832876,-150.3,0.0001706,2]
[407752222,1772755832886,-200.0,0.00017096,2]
[407752223,1772755832895,-19851.56065605,0.0001711,2]
[407752224,1772755832904,-1712.29207385,0.00017176,2]
[407752225,1772755832914,-7100.85414762,0.00017276,2]
[407752226,1772755832924,-150.3,0.0001733,2]
[407752227,1772755832933,-380.08098525,0.00017542,2]
[407752228,1772755832942,-1712.2920738,0.00017565,2]
[407752229,1772755832952,-500.0,0.00017596,2]
[407752230,1772755832961,-150.3,0.000176,2]
[407752231,1772755832971,-7100.85414762,0.00017651,2]
[407752232,1772755832980,-173.98765808,0.00017657,2]
[407752233,1772755832990,-1601.0,0.00017675,2]
[407752234,1772755832999,-179.06,0.00017696,2]
[407752235,1772755833008,-1000.0,0.0001772,2]
[407752236,1772755833018,-2301.12,0.00017867,2]
[407752237,1772755833027,-1127.48699644,0.00017868,2]
[407752238,1772755833037,-150.3,0.0001787,2]
[407752239,1772755833047,-1000.0,0.00017913,2]
[407752240,1772755833057,-693.3919763,0.00017913,2]
[407752241,1772755833067,-4792.73,0.00017946,2]
[407752242,1772755833082,-1712.2920738,0.00017954,2]
[407752243,1772755833094,-719.04747942,0.00017968,2]
[407752244,1772755833104,-420.0,0.00018018,2]
[407752245,1772755833115,-6679.21,0.00018023,2]
[407752246,1772755833125,-745.65223616,0.00018023,2]
[407752247,1772755833135,-7100.85414762,0.00018026,2]
[407752248,1772755833144,-500.0,0.00018057,2]
[407752249,1772755833156,-773.2413689,0.00018078,2]
[407752250,1772755833165,-1600.0,0.00018082,7]
[407752251,1772755833175,-250.0,0.00018097,2]
[407752252,1772755833184,-1680.0,0.00018108,2]
[407752253,1772755833193,-801.85129955,0.00018133,2]
[407752254,1772755833202,-150.3,0.0001814,2]
[407752255,1772755833211,-831.51979763,0.00018188,2]
[407752256,1772755833220,-862.28603014,0.00018243,2]
[407752257,1772755833229,-555.0,0.00018282,2]
[407752258,1772755833239,-255.0,0.00018282,2]
[407752259,1772755833248,-1600.0,0.00018282,2]
[407752260,1772755833257,-894.19061326,0.00018298,2]
[407752261,1772755833267,-1712.2920738,0.00018343,2]
[407752262,1772755833276,-927.27566595,0.00018353,2]
[407752263,1772755833285,-800.0,0.00018356,7]
[407752264,1772755833294,-500.0,0.00018356,7]
[407752265,1772755833303,-555.0,0.00018384,2]
[407752266,1772755833312,-555.0,0.00018384,2]
[407752267,1772755833321,-846.0,0.000184,2]
[407752268,1772755833331,-160.0,0.000184,2]
[407752269,1772755833341,-7100.85414762,0.000184,2]
[407752270,1772755833350,-961.58486559,0.00018408,2]
[407752271,1772755833359,-150.3,0.0001841,2]
[407752272,1772755833369,-1000.0,0.00018461,2]
[407752273,1772755833378,-997.16350561,0.00018463,2]
[407752274,1772755833388,-443.2,0.00018479,2]
[407752275,1772755833397,-2007.0,0.00018586,2]
[407752276,1772755833406,-380.08098525,0.00018626,7]
[407752277,1772755833416,-555.0,0.00018638,2]
[407752278,1772755833426,-202.16,0.00018638,2]
[407752279,1772755833436,-150.3,0.0001868,2]
[407752280,1772755833445,-846.0,0.0001872,2]
[407752281,1772755833455,-443.2,0.00018724,2]
[407752282,1772755833464,-555.0,0.00018763,2]
[407752283,1772755833473,-555.0,0.00018763,2]
[407752284,1772755833482,-150.0,0.00018769,2]
[407752285,1772755833491,-1278.0,0.00018769,2]
[407752286,1772755833501,-1212.0,0.00018769,2]
[407752287,1772755833510,-7100.85414762,0.00018775,2]
[407752288,1772755833520,-173.98765808,0.00018779,2]
[407752289,1772755833529,-921.0,0.00018789,2]
[407752290,1772755833538,-413.0,0.00018795,2]
[407752291,1772755833547,-5989.0,0.00018795,2]
[407752292,1772755833556,-555.0,0.00018882,2]
[407752293,1772755833566,-1127.48699644,0.00018884,2]
[407752294,1772755833576,-555.0,0.00018892,2]
[407752295,1772755833586,-150.3,0.0001895,2]
[407752296,1772755833595,-443.2,0.00018967,2]
[407752297,1772755833604,-1000.0,0.00019009,2]
[407752298,1772755833614,-6869.0691,0.00019138,2]
[407752299,1772755833623,-270.0,0.00019146,2]
[407752300,1772755833632,-150.0,0.00019146,2]
[407752301,1772755833641,-150.0,0.00019146,2]
[407752302,1772755833650,-150.0,0.00019146,2]
[407752303,1772755833659,-150.0,0.00019146,2]
[407752304,1772755833669,-150.0,0.00019146,2]
[407752305,1772755833678,-150.0,0.00019146,2]
[407752306,1772755833687,-150.0,0.00019146,2]
[407752307,1772755833696,-150.0,0.00019146,2]
[407752308,1772755833706,-150.0,0.00019146,2]
[407752309,1772755833715,-150.0,0.00019146,2]
[407752310,1772755833724,-3501.0,0.00019146,2]
[407752311,1772755833734,-1041.0,0.00019146,2]
[407752312,1772755833743,-619.0,0.00019146,2]
[407752313,1772755833753,-7100.85414762,0.0001915,2]
[407752314,1772755833762,-380.08098525,0.00019169,7]
[407752315,1772755833771,-1600.0,0.00019178,7]
[407752316,1772755833781,-443.21212477,0.00019197,2]
[407752317,1772755833790,-2000.0,0.000192,2]
[407752318,1772755833799,-150.3,0.0001922,2]
[407752319,1772755833809,-1000.0,0.00019294,2]
[407752320,1772755833819,-499.99,0.00019339,2]
[407752321,1772755833828,-150.99,0.00019339,2]
[407752322,1772755833838,-4335.99,0.00019339,2]
[407752323,1772755833848,-259.58,0.00019339,2]
[407752324,1772755833857,-7286.18,0.00019339,2]
[407752325,1772755833867,-311.98,0.00019339,2]
[407752326,1772755833876,-135188.78,0.00019339,2]
[407752327,1772755833886,-8717.53,0.00019339,2]
[407752328,1772755833895,-7975.38,0.00019339,2]
[407752329,1772755833905,-9999.99,0.00019339,2]
[407752330,1772755833914,-150.99,0.00019339,2]
[407752331,1772755833923,-999.99,0.00019339,2]
[407752332,1772755833932,-299.99,0.00019339,7]
[407752333,1772755833941,-7319.42,0.00019339,2]
[407752334,1772755833952,-9999.99,0.00019339,2]
[407752335,1772755833961,-9999.99,0.00019339,2]
[407752336,1772755833971,-9999.99,0.00019339,2]
[407752337,1772755833981,-516.39,0.00019339,2]
[407752338,1772755833991,-7581.3,0.00019339,2]
[407752339,1772755834000,-3425.98,0.00019339,2]
[407752340,1772755834010,-2989.1,0.00019339,2]
[407752341,1772755834019,-1254.2,0.00019355,2]
[407752342,1772755834028,-800.0,0.00019452,7]
[407752343,1772755834037,-500.0,0.00019452,7]
[407752344,1772755834047,-172.70211477,0.00019459,2]
[407752345,1772755834057,-160.0,0.00019459,2]
[407752346,1772755834066,-150.3,0.0001949,2]
[407752347,1772755834077,-7100.85414762,0.00019525,2]
[407752348,1772755834088,-1000.0,0.00019557,2]
[407752349,1772755834097,-1000.0,0.00019568,2]
[407752350,1772755834107,-846.0,0.00019573,2]
[407752351,1772755834118,-223.30842642,0.000196,2]
[407752352,1772755834127,-202.16,0.00019674,2]
[407752353,1772755834136,-587.0,0.0001969,2]
[407752354,1772755834146,-380.08098525,0.00019711,7]
[407752355,1772755834155,-150.3,0.0001976,2]
[407752356,1772755834164,-500.0,0.0001984,2]
[407752357,1772755834174,-1000.0,0.00019842,2]
[407752358,1772755834183,-25000.0,0.00019874,3]
[407752359,1772755834192,-25000.0,0.00019882,3]
[407752360,1772755834201,-2351.0,0.00019887,2]
[407752361,1772755834211,-25000.0,0.00019891,3]
[407752362,1772755834219,-25000.0,0.000199,3]
[407752363,1772755834229,-172.70211477,0.000199,3]
[407752364,1772755834238,-172.70211477,0.000199,3]
[407752365,1772755834247,-172.70211477,0.000199,3]
[407752366,1772755834255,-15474.28784221,0.000199,3]
[407752367,1772755834265,-173.98765808,0.000199,2]
[407752368,1772755834274,-150.0,0.000199,2]
[407752369,1772755834283,-150.0,0.000199,2]
[407752370,1772755834293,-7100.85414762,0.000199,2]
[407752371,1772755834302,-150.0,0.000199,2]
[407752372,1772755834311,-1127.48699644,0.000199,2]
[407752373,1772755834320,-882.405446,0.00019903,2]
[407752374,1772755834329,-11833.5,0.0001991,2]
[407752375,1772755834338,-1955.2846563,0.00019959,2]
[407752376,1772755834347,-89341.2886106,0.00019969,2]
[407752377,1772755834356,-500.0,0.00019973,2]
[407752378,1772755834366,-500.0,0.00019973,2]
[407752379,1772755834375,-545.99891854,0.00019973,2]
[407752380,1772755834384,-500.0,0.00019973,2]
[407752381,1772755834394,-547.8558944,0.00019973,2]
[407752382,1772755834404,-500.0,0.00019973,2]
[407752383,1772755834414,-510.83155998,0.00019973,2]
[407752384,1772755834425,-500.0,0.00019973,2]
[407752385,1772755834434,-500.0,0.00019973,2]
[407752386,1772755834443,-500.0,0.00019973,2]
[407752387,1772755834452,-500.0,0.00019973,2]
[407752388,1772755834461,-500.23771365,0.00019973,2]
[407752389,1772755834470,-500.0,0.00019973,2]
[407752390,1772755834479,-500.0,0.00019973,2]
[407752391,1772755834488,-229.70799363,0.00019973,2]
[407752392,1772755834497,-500.0,0.00019973,2]
[407752393,1772755834506,-500.0,0.00019973,2]
[407752394,1772755834515,-500.0,0.00019973,2]
[407752395,1772755834525,-500.0,0.00019973,2]
[407752396,1772755834533,-500.0,0.00019973,2]
[407752397,1772755834543,-500.0,0.00019973,2]
[407752398,1772755834551,-500.0,0.00019973,2]
[407752399,1772755834560,-500.0,0.00019973,2]
[407752400,1772755834569,-500.0,0.00019973,2]
[407752401,1772755834579,-500.0,0.00019973,2]
[407752402,1772755834588,-500.0,0.00019973,2]
[407752403,1772755834598,-168.95144707,0.00019973,2]
[407752404,1772755834607,-330.98028369,0.00019973,2]
[407752405,1772755834616,-500.22740042,0.00019973,2]
[407752406,1772755834625,-500.0,0.00019973,2]
[407752407,1772755834634,-500.0,0.00019973,2]
[407752408,1772755834643,-500.0,0.00019973,2]
[407752409,1772755834655,-500.0,0.00019973,2]
[407752410,1772755834664,-500.0,0.00019973,2]
[407752411,1772755834674,-139364.1844952,0.00019973,2]
[407752412,1772755834683,-35934.8213688,0.00019973,2]
[407752413,1772755834692,-3551.7439451,0.00019973,2]
[407752414,1772755834701,-2154.4906094,0.00019973,2]
[407752415,1772755834710,-34657.7058579,0.00019973,2]
[407752416,1772755834720,-150.0,0.00019999,2]
[407752417,1772755834729,-158.28311974,0.00019999,2]
[407752418,1772755834738,-124455.4324433,0.0002,2]
[407752419,1772755834777,-195750.40119921,0.0002,2]
[407752420,1772755834788,-250680.15365965,0.0002,2]
[407752421,1772755834799,-362832.54636113,0.0002,2]
[407752422,1772755834810,-1254.41808677,0.0002,2]
[407752423,1772755834821,-3657.65074635,0.0002,2]
[407752424,1772755834832,-784.54454562,0.0002,2]
[407752425,1772755834843,-287.06431718,0.0002,2]
[407752426,1772755834854,-1555.22270265,0.0002,2]
[407752427,1772755834870,-352379.46233572,0.0002,2]
[407752428,1772755834881,-356830.521,0.0002,2]
[407752429,1772755834892,-30791.24074662,0.0002,2]
[407752430,1772755834905,-500.0,0.0002,2]
[407752433,1772755837930,-1712.2920738,0.00018733,2]
[407752434,1772755837940,-6901.23183537,0.0002,2]
[407752435,1772755837951,-1416.40035,0.0002,2]
[407752436,1772755837962,-446.26987052,0.0002,2]
[407752437,1772755837977,-23399.88150952,0.0002,2]
[407752438,1772755838005,-1533.70910463,0.0002,2]
[407752439,1772755838046,-2084.92807162,0.0002,2]
[407752440,1772755838056,-793.66649967,0.0002,2]
[407752442,1772755838174,-209674.77853944,0.0002,2]
[407752444,1772755838183,-2254710.74973906,0.0002,2]
[407752460,1772755841158,-511.0,0.00018795,2]
[407752466,1772755842974,-3234.0,0.00018795,2]
[407752469,1772755842984,-1712.2920738,0.00019122,2]
[407752472,1772755842993,-91.88961455,0.0002,2]
[407752475,1772755843097,-506.61809995,0.0002,2]
[407752476,1772755843109,-107152.29074087,0.0002,2]
[407752477,1772755843138,-1323.95192,0.0002,2]
[407752478,1772755843149,-931.86771549,0.0002,2]
[407752479,1772755843175,-828.41381714,0.0002,2]
[407752480,1772755843186,-526.824,0.0002,2]
[407752489,1772755843769,-91.50104973,0.0002,2]
[407752495,1772755845863,-11050.80782977,0.0002,2]
[407752499,1772755846100,-10476.70578017,0.0002,2]
[407752500,1772755846112,-926.98437568,0.0002,2]
[407752501,1772755846124,-262.6,0.0002,2]
[407752512,1772756493941,1107.957,0.00016061,2]
[407752513,1772756494061,169.69723529,0.00016061,2]
[407752514,1772756531725,500.49,0.00016291,2]
[407752515,1772756567023,150.0,0.00016291,2]
[407752516,1772756624532,663.68026894,0.00016,7]
[407752517,1772756746671,176.475779,0.00016149,7]
[407752519,1772756835127,-195.50458359,0.00016361,2]
[407752520,1772756876575,10945.3964,0.00016289,2]
[407752521,1772756958139,-245.0,0.00016357,2]
[407752522,1772756972486,500.0,0.00016261,2]
[407752532,1772757032156,-234.01766778,0.00016357,2]
[407752533,1772757032167,-1253.59,0.00016361,2]
[407752534,1772757032177,-400.0,0.0001637,5]
[407752535,1772757032186,-1200.0,0.00016378,2]
[407752536,1772757032196,-194.39,0.00016379,3]
[407752537,1772757032206,-926.7615856,0.00016379,2]
[407752538,1772757032283,-37934.42076559,0.00016379,2]
[407752539,1772757032293,-280.81579252,0.00016379,2]
[407752540,1772757032302,-151.0,0.00016386,2]
[407752541,1772757032312,-151.0,0.00016386,2]
[407752543,1772757032322,-151.0,0.00016386,2]
[407752544,1772757032332,-571.0,0.00016387,2]
[407752545,1772757032342,-286.0,0.00016387,2]
[407752546,1772757032351,-1041.30749208,0.00016388,5]
[407752548,1772757032361,-500.0,0.00016388,2]
[407752550,1772757032371,-500.0,0.00016388,2]
[407752552,1772757032380,-500.0,0.00016388,2]
[407752554,1772757032390,-500.0,0.00016388,2]
[407752556,1772757032401,-500.0,0.00016388,2]
[407752558,1772757032420,-1064.58259983,0.00016388,5]
[407752560,1772757032430,-156.46,0.00016388,2]
[407752562,1772757032440,-500.0,0.00016388,2]
[407752564,1772757032450,-514.93665928,0.00016388,2]
[407752565,1772757032460,-200.20476375,0.00016388,2]
[407752566,1772757032469,-277.52972898,0.00016388,2]
[407752568,1772757032484,-500.0,0.00016388,2]
[407752570,1772757032494,-500.0,0.00016388,2]
[407752572,1772757032503,-500.0,0.00016388,2]
[407752573,1772757032512,-500.0,0.00016388,2]
[407752574,1772757032522,-500.0,0.00016388,2]
[407752575,1772757032532,-500.0,0.00016388,2]
[407752576,1772757032543,-500.0,0.00016388,2]
[407752577,1772757032555,-500.0,0.00016388,2]
[407752578,1772757032565,-500.0,0.00016388,2]
[407752579,1772757032575,-500.0,0.00016388,2]
[407752580,1772757032585,-500.0,0.00016388,2]
[407752581,1772757032595,-500.0,0.00016388,2]
[407752582,1772757032605,-500.0,0.00016388,2]
[407752583,1772757032615,-500.0,0.00016388,2]
[407752584,1772757032624,-500.0,0.00016388,2]
[407752585,1772757032634,-500.0,0.00016388,2]
[407752586,1772757032646,-500.0,0.00016388,2]
[407752587,1772757032655,-500.0,0.00016388,2]
[407752588,1772757032666,-500.0,0.00016388,2]
[407752589,1772757032675,-500.0,0.00016388,2]
[407752590,1772757032684,-396.63519121,0.00016388,2]
[407752591,1772757032693,-500.0,0.00016388,2]
[407752592,1772757032703,-204.32780441,0.00016388,2]
[407752593,1772757032712,-500.0,0.00016388,2]
[407752594,1772757032721,-500.0,0.00016388,2]
[407752595,1772757032731,-500.0,0.00016388,2]
[407752596,1772757032742,-500.0,0.00016388,2]
[407752597,1772757032753,-250.0,0.00016388,2]
[407752598,1772757032761,-205659.51349444,0.00016389,2]
[407752599,1772757036042,2968.2844,0.00016289,2]
[407752604,1772757038154,-1274.14311857,0.00016389,2]
[407752605,1772757038261,-353.42012568,0.00016389,2]
[407752606,1772757038271,-522.44232454,0.00016389,2]
[407752607,1772757038285,-2292190.48093677,0.00016389,2]
[407752608,1772757038294,-724.05818807,0.00016457,2]
[407752609,1772757038303,-500.0,0.00016557,2]
[407752610,1772757038312,-156.46,0.00016662,2]
[407752611,1772757038321,-479.01766773,0.00016751,2]
[407752612,1772757038330,-279.70952038,0.00016791,3]
[407752613,1772757038339,-709.23395142,0.00016791,3]
[407752614,1772757038348,-556.38137571,0.00016791,3]
[407752615,1772757038356,-833.05323105,0.00016791,3]
[407752616,1772757038365,-896.35292053,0.00016791,3]
[407752617,1772757038374,-4658.45277048,0.00016923,2]
[407752618,1772757038383,-156.48,0.00016936,2]
[407752619,1772757038392,-724.05818807,0.00016949,2]
[407752620,1772757038402,-500.0,0.00016999,2]
[407752621,1772757038413,-159.70218079,0.00017,2]
[407752622,1772757038422,-479.01766773,0.00017144,2]
[407752623,1772757038431,-724.05818807,0.00017441,2]
[407752624,1772757038440,-479.01766773,0.00017538,2]
[407752625,1772757038450,-294.19,0.00017713,2]
[407752626,1772757038459,-150.99,0.00017728,2]
[407752627,1772757038468,-9999.99,0.00017728,2]
[407752628,1772757038482,-499.99,0.00017728,2]
[407752629,1772757038491,-150.99,0.00017728,2]
[407752630,1772757038500,-4251.67,0.00017728,2]
[407752631,1772757038510,-9999.99,0.00017728,2]
[407752632,1772757038519,-9999.99,0.00017728,2]
[407752633,1772757038528,-999.99,0.00017728,2]
[407752634,1772757038537,-299.99,0.00017728,4]
[407752635,1772757038546,-271.45,0.00017728,2]
[407752636,1772757038555,-9999.99,0.00017728,2]
[407752637,1772757038564,-542.58,0.00017763,2]
[407752638,1772757038573,-5927.2,0.00017871,2]
[407752639,1772757038582,-479.01766773,0.00017932,2]
[407752640,1772757038592,-724.05818807,0.00017933,2]
[407752641,1772757038602,-1680.0,0.00017989,2]
[407752642,1772757038611,-10048.75,0.0001803,2]
[407752643,1772757038620,-1400.0,0.00018082,7]
[407752644,1772757038629,-479.01766773,0.00018325,2]
[407752645,1772757038638,-700.0,0.00018356,7]
[407752646,1772757038647,-500.0,0.00018356,7]
[407752647,1772757038657,-724.05818807,0.00018424,2]
[407752648,1772757038666,-500.0,0.00018548,2]
[407752649,1772757038679,-150.0,0.00018658,2]
[407752650,1772757038689,-200.0,0.00018704,2]
[407752651,1772757038698,-479.01766773,0.00018719,2]
[407752652,1772757038707,-160.0,0.0001872,2]
[407752653,1772757038717,-693.3919763,0.00018784,2]
[407752654,1772757038726,-719.04747942,0.00018839,2]
[407752655,1772757038736,-1281.0,0.00018867,2]
[407752656,1772757038745,-1026.0,0.00018867,2]
[407752657,1772757038754,-745.65223616,0.00018894,2]
[407752658,1772757038764,-724.05818807,0.00018916,2]
[407752659,1772757038773,-773.2413689,0.00018949,2]
[407752660,1772757038783,-13859.86938094,0.00019,2]
[407752661,1772757038792,-801.85129955,0.00019004,2]
[407752662,1772757038801,-160.0,0.0001904,2]
[407752663,1772757038810,-831.51979763,0.00019059,2]
[407752664,1772757038819,-735.93,0.00019101,2]
[407752665,1772757038828,-479.01766773,0.00019113,2]
[407752666,1772757038838,-862.28603014,0.00019114,2]
[407752667,1772757038847,-150.0,0.00019146,2]
[407752668,1772757038856,-1278.0,0.00019146,2]
[407752669,1772757038865,-1212.0,0.00019146,2]
[407752670,1772757038879,-921.0,0.00019146,2]
[407752671,1772757038888,-5985.0,0.00019146,2]
[407752672,1772757038897,-2459.0,0.00019146,2]
[407752673,1772757038906,-894.19061326,0.00019169,2]
[407752674,1772757038915,-1400.0,0.00019178,7]
[407752675,1772757038924,-2000.0,0.000192,2]
[407752676,1772757038934,-927.27566595,0.00019224,2]
[407752677,1772757038943,-961.58486559,0.00019279,2]
[407752678,1772757038953,-1000.0,0.00019294,2]
[407752679,1772757038963,-997.16350561,0.00019334,2]
[407752680,1772757038972,-846.0,0.0001936,2]
[407752681,1772757038981,-1149.7,0.00019395,2]
[407752682,1772757038990,-724.05818807,0.00019408,2]
[407752683,1772757038999,-700.0,0.00019452,7]
[407752684,1772757039010,-500.0,0.00019452,7]
[407752685,1772757039019,-160.0,0.00019485,2]
[407752686,1772757039028,-172.70211477,0.00019485,2]
[407752687,1772757039038,-479.01766773,0.00019506,2]
[407752688,1772757039047,-1000.0,0.00019568,2]
[407752689,1772757039057,-1092.0,0.00019759,2]
[407752691,1772757039070,-1000.0,0.00019842,2]
[407752693,1772757039080,-350.0,0.00019846,2]
[407752695,1772757039089,-5800.0,0.00019892,2]
[407752697,1772757039099,-5000.0,0.000199,2]
[407752698,1772757039108,-25069.2187,0.000199,2]